bitfinex/quotes_BTCUSD_20220105
["timestamp","ask_amount","ask_price","bid_price","bid_amount"]
[1641364833701,0.15900338,46383.0,46382.0,0.98478606]
[1641364833702,0.10900338,46383.0,46382.0,0.98478606]
[1641364833902,0.10900338,46383.0,46382.0,0.78536269]
[1641364834501,0.10900338,46383.0,46382.0,0.98381597]
[1641364834749,0.10900338,46383.0,46382.0,0.98780578]
[1641364835350,0.0551,46383.0,46382.0,0.98780578]
[1641364835954,0.0551,46383.0,46382.0,0.78536269]
[1641364836151,0.0551,46383.0,46382.0,0.98456154]
[1641364837253,0.0551,46383.0,46382.0,2.54476747]
[1641364837851,0.0551,46383.0,46382.0,1.82662796]
[1641364838152,0.0551,46383.0,46382.0,0.98456154]
[1641364838405,0.0551,46383.0,46382.0,0.55704118]
[1641364839405,0.0551,46383.0,46382.0,2.11754051]
[1641364840505,0.0551,46383.0,46382.0,1.91586202]
[1641364843345,0.0551,46383.0,46382.0,0.35536269]
[1641364846999,0.0551,46383.0,46382.0,1.91909325]
[1641364849401,0.0551,46383.0,46382.0,0.35536269]
[1641364849852,0.0551,46383.0,46382.0,1.9189495]
[1641364850053,0.0551,46383.0,46382.0,1.19742911]
[1641364850454,0.0551,46383.0,46382.0,1.9189495]
[1641364851053,0.0551,46383.0,46382.0,1.19742911]
[1641364851454,0.0551,46383.0,46382.0,1.9189495]
[1641364851657,0.0551,46383.0,46382.0,1.19742911]
[1641364851854,0.0551,46383.0,46382.0,1.9189495]
[1641364852955,0.0551,46383.0,46382.0,1.19742911]
[1641364853158,0.0551,46383.0,46382.0,0.35536269]
[1641364866055,0.0551,46383.0,46382.0,0.00014269]
[1641364867758,0.28142092,46383.0,46382.0,0.00014269]
[1641364867955,0.0563585,46383.0,46382.0,0.00014269]
[1641364868419,0.05638267,46380.0,46379.0,0.84206642]
[1641364868820,0.05638267,46380.0,46377.0,0.01184668]
[1641364868821,0.053921,46379.0,46377.0,0.01184668]
[1641364869018,0.0551,46378.0,46377.0,0.01184668]
[1641364870022,0.26557504,46378.0,46377.0,0.01184668]
[1641364870222,0.26557504,46378.0,46371.0,0.004]
[1641364870522,0.0551,46373.0,46371.0,0.004]
[1641364870921,0.0551,46373.0,46372.0,0.61184681]
[1641364871324,0.0551,46373.0,46372.0,0.01184681]
[1641364871724,0.0551,46373.0,46372.0,0.39184681]
[1641364872026,0.36955974,46373.0,46372.0,0.01184681]
[1641364872258,0.36955974,46373.0,46371.0,0.004]
[1641364872451,0.0563044,46372.0,46371.0,0.004]
[1641364872853,0.4115244,46372.0,46371.0,0.004]
[1641364873251,0.0643044,46372.0,46371.0,0.004]
[1641364874451,0.0563044,46372.0,46371.0,0.004]
[1641364875252,0.0653044,46372.0,46371.0,0.004]
[1641364875898,0.0653044,46372.0,46371.0,0.00413985]
[1641364876100,0.4205244,46372.0,46371.0,0.00413985]
[1641364876500,0.61492264,46372.0,46371.0,0.00413985]
[1641364877301,0.62592264,46372.0,46371.0,0.00413985]
[1641364878102,0.4225244,46372.0,46371.0,0.00413985]
[1641364878503,0.61499813,46372.0,46371.0,0.00413985]
[1641364879105,0.0563044,46372.0,46371.0,0.00413985]
[1641364879305,0.0663044,46372.0,46371.0,0.00413985]
[1641364880464,0.0563044,46372.0,46371.0,0.00413985]
[1641364881467,0.61486999,46372.0,46371.0,0.00413985]
[1641364883068,0.4115244,46372.0,46371.0,0.00413985]
[1641364884702,0.0563044,46372.0,46371.0,0.00413985]
[1641364885504,0.0551,46372.0,46371.0,0.00413985]
[1641364886604,0.0551,46372.0,46371.0,0.53413985]
[1641364887353,0.0551,46372.0,46371.0,0.01813985]
[1641364887555,0.0551,46372.0,46371.0,0.53620193]
[1641364888557,0.0551,46372.0,46371.0,0.52220193]
[1641364888763,0.0551,46372.0,46371.0,0.63002593]
[1641364888957,0.0551,46372.0,46371.0,1.03354593]
[1641364889355,0.0551,46372.0,46371.0,1.04854593]
[1641364889555,0.0551,46372.0,46371.0,2.09854593]
[1641364890560,0.0551,46372.0,46371.0,2.08354593]
[1641364891407,0.0551,46372.0,46371.0,2.10154593]
[1641364892508,0.0551,46372.0,46371.0,2.08354593]
[1641364892705,0.0551,46372.0,46371.0,3.42754593]
[1641364893111,0.0551,46372.0,46371.0,2.18354593]
[1641364893305,0.0551,46372.0,46371.0,2.20654593]
[1641364893906,0.0551,46372.0,46371.0,2.25654593]
[1641364894657,0.0551,46372.0,46371.0,2.23354593]
[1641364894858,0.0551,46372.0,46371.0,2.18354593]
[1641364895259,0.0551,46372.0,46371.0,2.21254593]
[1641364895859,0.0551,46372.0,46371.0,3.25654593]
[1641364896158,0.0551,46372.0,46371.0,2.11254593]
[1641364896560,0.0551,46372.0,46371.0,1.06254593]
[1641364896962,0.0551,46372.0,46371.0,1.06261411]
[1641364897161,0.0551,46372.0,46371.0,1.03361411]
[1641364897362,0.0551,46372.0,46371.0,1.86161411]
[1641364898801,0.02896721,46377.0,46374.0,0.053907]
[1641364899002,0.02896721,46377.0,46375.0,0.33325566]
[1641364901103,0.02896721,46377.0,46375.0,0.38716166]
[1641364901305,0.02896721,46377.0,46375.0,0.45616166]
[1641364902547,0.02896721,46377.0,46376.0,0.19893825]
[1641364902750,0.05390524,46379.0,46377.0,0.053906]
[1641364902947,0.05448166,46379.0,46377.0,0.053906]
[1641364903353,0.05448166,46379.0,46377.0,0.088906]
[1641364904748,0.05448166,46379.0,46377.0,0.053906]
[1641364904948,0.05448166,46379.0,46378.0,1.33135512]
[1641364905149,0.05448166,46379.0,46378.0,1.68657512]
[1641364905449,0.05448166,46379.0,46378.0,0.55657512]
[1641364905649,0.05448166,46379.0,46378.0,0.20135512]
[1641364905915,0.05448166,46379.0,46377.0,0.080906]
[1641364907313,0.05448166,46379.0,46377.0,0.081906]
[1641364907515,0.05448166,46379.0,46378.0,0.00020253]
[1641364907713,0.05448166,46379.0,46378.0,0.58020253]
[1641364908113,0.05390524,46379.0,46378.0,0.00020253]
[1641364908713,1.05,46380.0,46378.0,0.00020253]
[1641364908714,1.15781866,46380.0,46378.0,0.00020253]
[1641364909315,1.15781866,46380.0,46378.0,0.06220253]
[1641364910552,1.15781866,46380.0,46378.0,0.00020253]
[1641364910952,1.10390862,46380.0,46378.0,0.00020253]
[1641364911352,1.10390862,46380.0,46378.0,0.06020253]
[1641364912555,1.10390862,46380.0,46378.0,0.00020253]
[1641364913406,1.10390862,46380.0,46378.0,0.02320253]
[1641364915208,1.10390862,46380.0,46378.0,0.00020253]
[1641364915407,1.10390862,46380.0,46378.0,0.02920253]
[1641364916009,1.10283352,46380.0,46378.0,0.02920253]
[1641364916707,1.10283352,46380.0,46378.0,0.00020253]
[1641364917351,1.10283352,46380.0,46378.0,0.05920253]
[1641364917754,0.35522,46379.0,46378.0,0.05920253]
[1641364918154,0.71522,46379.0,46378.0,0.05920253]
[1641364918356,0.86647696,46379.0,46378.0,0.05920253]
[1641364918752,0.86647696,46379.0,46378.0,0.00020253]
[1641364919152,1.29647696,46379.0,46378.0,0.00020253]
[1641364919354,1.30847696,46379.0,46378.0,0.00020253]
[1641364919655,0.87847696,46379.0,46378.0,0.00020253]
[1641364919854,1.3043594,46379.0,46378.0,0.00020253]
[1641364920254,1.2082804,46379.0,46378.0,0.00020253]
[1641364920455,0.8482804,46379.0,46378.0,0.00020253]
[1641364920655,0.51039796,46379.0,46378.0,0.00020253]
[1641364921506,0.53239796,46379.0,46378.0,0.00020253]
[1641364922102,0.58239796,46379.0,46378.0,0.00020253]
[1641364922704,0.56039796,46379.0,46378.0,0.00020253]
[1641364923505,0.57539796,46379.0,46378.0,0.00020253]
[1641364924657,0.56039796,46379.0,46378.0,0.00020253]
[1641364925463,0.57439796,46379.0,46378.0,0.00020253]
[1641364926661,0.56039796,46379.0,46378.0,0.00020253]
[1641364927461,0.57439796,46379.0,46378.0,0.00020253]
[1641364928706,0.51039796,46379.0,46378.0,0.00020253]
[1641364929511,0.52539796,46379.0,46378.0,0.00020253]
[1641364930106,0.57539796,46379.0,46378.0,0.00020253]
[1641364930807,0.56039796,46379.0,46378.0,0.00020253]
[1641364931407,0.57339796,46379.0,46378.0,0.00020253]
[1641364932667,0.56039796,46379.0,46378.0,0.00020253]
[1641364933467,0.57539796,46379.0,46378.0,0.00020253]
[1641364934672,0.56039796,46379.0,46378.0,0.00020253]
[1641364934974,0.41039796,46379.0,46378.0,0.00020253]
[1641364935171,0.35647696,46379.0,46378.0,0.00020253]
[1641364935370,0.00125696,46379.0,46378.0,0.00020253]
[1641364935571,0.37147696,46379.0,46378.0,0.00020253]
[1641364936011,0.01625696,46379.0,46378.0,0.00020253]
[1641364936711,0.00125696,46379.0,46378.0,0.00020253]
[1641364937114,0.35647696,46379.0,46378.0,0.00020253]
[1641364937516,0.41547696,46379.0,46378.0,0.00020253]
[1641364938712,0.35647696,46379.0,46378.0,0.00020253]
[1641364939511,0.37447696,46379.0,46378.0,0.00020253]
[1641364940359,0.01925696,46379.0,46378.0,0.00020253]
[1641364940761,0.00125696,46379.0,46378.0,0.00020253]
[1641364941662,0.04625696,46379.0,46378.0,0.00020253]
[1641364942666,0.00125696,46379.0,46378.0,0.00020253]
[1641364943509,0.04425696,46379.0,46378.0,0.00020253]
[1641364944712,0.00125696,46379.0,46378.0,0.00020253]
[1641364945417,0.05025696,46379.0,46378.0,0.00020253]
[1641364945612,0.40547696,46379.0,46378.0,0.00020253]
[1641364946812,0.35647696,46379.0,46378.0,0.00020253]
[1641364947463,0.36947696,46379.0,46378.0,0.00020253]
[1641364949163,0.01425696,46379.0,46378.0,0.00020253]
[1641364949366,0.00125696,46379.0,46378.0,0.00020253]
[1641364949566,0.01925696,46379.0,46378.0,0.00020253]
[1641364949965,0.37447696,46379.0,46378.0,0.00020253]
[1641364950909,0.35647696,46379.0,46378.0,0.00020253]
[1641364951511,0.36947696,46379.0,46378.0,0.00020253]
[1641364952814,0.35647696,46379.0,46378.0,0.00020253]
[1641364953415,0.37247696,46379.0,46378.0,0.00020253]
[1641364954419,0.37122,46379.0,46378.0,0.00020253]
[1641364954868,0.35522,46379.0,46378.0,0.00020253]
[1641364955665,0.38222,46379.0,46378.0,0.00020253]
[1641364956867,0.35522,46379.0,46378.0,0.00020253]
[1641364957467,0.37122,46379.0,46378.0,0.00020253]
[1641364958716,1.83484975,46379.0,46378.0,0.00020253]
[1641364958914,0.35522,46379.0,46378.0,0.00020253]
[1641364959514,0.37122,46379.0,46378.0,0.00020253]
[1641364960913,0.35522,46379.0,46378.0,0.00020253]
[1641364961517,0.36722,46379.0,46378.0,0.00020253]
[1641364962763,0.35522,46379.0,46378.0,0.00020253]
[1641364963463,0.36822,46379.0,46378.0,0.00020253]
[1641364964666,0.35522,46379.0,46378.0,0.00020253]
[1641364965466,0.36822,46379.0,46378.0,0.00020253]
[1641364966713,0.35522,46379.0,46378.0,0.00020253]
[1641364967515,0.36622,46379.0,46378.0,0.00020253]
[1641364968819,0.35522,46379.0,46378.0,0.00020253]
[1641364969670,0.36822,46379.0,46378.0,0.00020253]
[1641364971474,0.35522,46379.0,46378.0,0.00020253]
[1641364971671,0.36822,46379.0,46378.0,0.00020253]
[1641364972873,0.35522,46379.0,46378.0,0.00020253]
[1641364973515,0.36822,46379.0,46378.0,0.00020253]
[1641364974917,0.35522,46379.0,46378.0,0.00020253]
[1641364975516,0.39022,46379.0,46378.0,0.00020253]
[1641364976722,0.35522,46379.0,46378.0,0.00020253]
[1641364977563,0.42522,46379.0,46378.0,0.00020253]
[1641364978765,2.53413156,46379.0,46378.0,0.00020253]
[1641364979267,0.35522,46379.0,46378.0,0.00020253]
[1641364979663,0.42122,46379.0,46378.0,0.00020253]
[1641364980916,0.35522,46379.0,46378.0,0.00020253]
[1641364981616,0.36822,46379.0,46378.0,0.00020253]
[1641364982914,0.35522,46379.0,46378.0,0.00020253]
[1641364983616,0.36822,46379.0,46378.0,0.00020253]
[1641364984861,0.35522,46379.0,46378.0,0.00020253]
[1641364985665,0.36822,46379.0,46378.0,0.00020253]
[1641364986666,0.46822,46379.0,46378.0,0.00020253]
[1641364986865,0.35522,46379.0,46378.0,0.00020253]
[1641364987666,0.36822,46379.0,46378.0,0.00020253]
[1641364988811,0.35522,46379.0,46378.0,0.00020253]
[1641364989615,0.37322,46379.0,46378.0,0.00020253]
[1641364990013,0.018,46379.0,46378.0,0.00020253]
[1641364990415,0.018,46379.0,46378.0,1.08020253]
[1641364990614,0.018,46379.0,46378.0,1.43542253]
[1641364990814,1.0,46380.0,46378.0,1.43542253]
[1641364991115,1.0,46380.0,46379.0,1.416629]
[1641364991714,1.0,46380.0,46379.0,1.427629]
[1641364991915,0.05448604,46381.0,46379.0,0.247629]
[1641364992570,0.05448604,46381.0,46379.0,0.113206]
[1641364992973,0.05448604,46381.0,46379.0,0.102206]
[1641364993573,0.05448604,46381.0,46379.0,0.113206]
[1641364994875,0.05448604,46381.0,46380.0,0.68020084]
[1641364995573,0.05448604,46381.0,46380.0,0.01720084]
[1641364997016,0.05448604,46381.0,46380.0,0.00020084]
[1641364997218,0.05448604,46381.0,46380.0,0.48020084]
[1641364997419,0.05448604,46381.0,46380.0,0.83542084]
[1641364997616,0.06148604,46381.0,46380.0,0.36442084]
[1641364997816,0.06148604,46381.0,46380.0,0.00920084]
[1641364998318,0.06090698,46381.0,46380.0,0.00920084]
[1641364998517,0.06090698,46381.0,46380.0,0.20703111]
[1641364998718,0.06090698,46381.0,46380.0,0.00920084]
[1641364998918,0.05390698,46381.0,46380.0,0.00020084]
[1641364999117,0.10390698,46381.0,46380.0,0.00020084]
[1641364999317,0.05390698,46381.0,46380.0,0.00020084]
[1641364999518,0.10390698,46381.0,46380.0,0.00020084]
[1641364999762,0.10390698,46381.0,46380.0,0.01320084]
[1641365000962,0.10390698,46381.0,46380.0,0.00020084]
[1641365001762,0.10390698,46381.0,46380.0,0.01320084]
[1641365002866,0.10390698,46381.0,46380.0,0.00020084]
[1641365003724,0.10390698,46381.0,46380.0,0.01320084]
[1641365005228,0.10390698,46381.0,46380.0,0.00020084]
[1641365005625,0.10390698,46381.0,46380.0,0.01420084]
[1641365006225,0.10390698,46381.0,46380.0,0.21210768]
[1641365006426,0.05,46381.0,46380.0,0.21210768]
[1641365006628,0.053906,46382.0,46380.0,0.21210768]
[1641365006826,0.053906,46382.0,46380.0,0.26601268]
[1641365007028,0.053906,46382.0,46381.0,0.2003854]
[1641365007666,0.079906,46382.0,46381.0,0.2093854]
[1641365008369,0.079906,46382.0,46381.0,0.009]
[1641365008971,0.053906,46382.0,46380.0,0.05410584]
[1641365009270,0.053906,46382.0,46381.0,0.19770351]
[1641365009669,0.055906,46382.0,46381.0,0.19770351]
[1641365010069,0.055906,46382.0,46381.0,0.62770351]
[1641365010920,0.053906,46382.0,46381.0,0.62770351]
[1641365011719,0.091906,46382.0,46381.0,0.63470351]
[1641365012120,0.091906,46382.0,46381.0,0.007]
[1641365012920,0.091906,46382.0,46380.0,0.05410584]
[1641365012921,0.053906,46382.0,46380.0,0.05410584]
[1641365013420,0.053906,46382.0,46381.0,0.20109624]
[1641365014679,0.043906,46382.0,46381.0,0.20109624]
[1641365015785,0.062906,46382.0,46381.0,0.21009624]
[1641365016181,0.062906,46382.0,46381.0,0.56457771]
[1641365016382,0.062906,46382.0,46381.0,0.20935771]
[1641365016982,0.043906,46382.0,46381.0,0.20035771]
[1641365017780,0.063906,46382.0,46381.0,0.21035771]
[1641365018934,0.043906,46382.0,46381.0,0.20035771]
[1641365019737,0.043906,46382.0,46381.0,0.21135771]
[1641365020935,0.043906,46382.0,46381.0,0.01119957]
[1641365021737,0.043906,46382.0,46381.0,0.02319957]
[1641365022963,0.043906,46382.0,46381.0,0.00019957]
[1641365023164,0.093906,46382.0,46381.0,0.00019957]
[1641365023364,0.043906,46382.0,46381.0,0.00019957]
[1641365023564,0.093906,46382.0,46381.0,0.00019957]
[1641365023768,0.094906,46382.0,46381.0,0.05319957]
[1641365025070,0.093906,46382.0,46381.0,0.00019957]
[1641365025914,0.094906,46382.0,46381.0,0.04319957]
[1641365027512,0.094906,46382.0,46381.0,0.00019957]
[1641365027713,0.094906,46382.0,46381.0,0.04519957]
[1641365028820,0.144906,46382.0,46381.0,0.04519957]
[1641365029017,0.144906,46382.0,46381.0,0.00019957]
[1641365029018,1.19975455,46382.0,46381.0,0.00019957]
[1641365029217,0.69975455,46382.0,46381.0,0.00019957]
[1641365029413,0.67065574,46382.0,46381.0,0.00019957]
[1641365029866,0.533126,46382.0,46381.0,0.00119957]
[1641365030263,0.70274258,46382.0,46381.0,0.00119957]
[1641365030965,0.70274258,46382.0,46381.0,0.00019957]
[1641365031165,0.66874258,46382.0,46381.0,0.00019957]
[1641365031569,0.499126,46382.0,46381.0,0.00019957]
[1641365031765,0.550126,46382.0,46381.0,0.00019957]
[1641365033166,0.499126,46382.0,46381.0,0.00019957]
[1641365033819,0.548126,46382.0,46381.0,0.00019957]
[1641365035017,0.499126,46382.0,46381.0,0.00019957]
[1641365035716,0.553126,46382.0,46381.0,0.00019957]
[1641365037565,0.499126,46382.0,46381.0,0.00019957]
[1641365037765,0.548126,46382.0,46381.0,0.00019957]
[1641365039168,0.499126,46382.0,46381.0,0.00019957]
[1641365039767,0.550126,46382.0,46381.0,0.00019957]
[1641365041016,0.499126,46382.0,46381.0,0.00019957]
[1641365041814,0.416126,46382.0,46381.0,0.00019957]
[1641365043016,0.449126,46382.0,46381.0,0.00019957]
[1641365043914,0.465126,46382.0,46381.0,0.00019957]
[1641365044114,0.685126,46382.0,46381.0,0.00019957]
[1641365045168,0.669126,46382.0,46381.0,0.00019957]
[1641365045566,0.719126,46382.0,46381.0,0.00019957]
[1641365045768,0.734126,46382.0,46381.0,0.00019957]
[1641365047668,0.719126,46382.0,46381.0,0.00019957]
[1641365047868,0.734126,46382.0,46381.0,0.00019957]
[1641365048814,0.684126,46382.0,46381.0,0.00019957]
[1641365049016,0.669126,46382.0,46381.0,0.00019957]
[1641365049817,0.682126,46382.0,46381.0,0.00019957]
[1641365051216,0.669126,46382.0,46381.0,0.00019957]
[1641365051816,0.684126,46382.0,46381.0,0.00019957]
[1641365053061,0.669126,46382.0,46381.0,0.00019957]
[1641365053862,0.684126,46382.0,46381.0,0.00019957]
[1641365054965,0.734126,46382.0,46381.0,0.00019957]
[1641365055166,0.719126,46382.0,46381.0,0.00019957]
[1641365056015,0.732126,46382.0,46381.0,0.00019957]
[1641365057112,0.719126,46382.0,46381.0,0.00019957]
[1641365058113,0.732126,46382.0,46381.0,0.00019957]
[1641365059314,0.719126,46382.0,46381.0,0.00019957]
[1641365059972,0.732126,46382.0,46381.0,0.00019957]
[1641365061167,0.719126,46382.0,46381.0,0.00019957]
[1641365061867,0.732126,46382.0,46381.0,0.00019957]
[1641365063067,0.719126,46382.0,46381.0,0.00019957]
[1641365063940,0.732126,46382.0,46381.0,0.00019957]
[1641365065144,0.719126,46382.0,46381.0,0.00019957]
[1641365065741,0.620126,46382.0,46381.0,0.00019957]
[1641365065940,0.633126,46382.0,46381.0,0.00019957]
[1641365066941,0.687032,46382.0,46381.0,0.00019957]
[1641365067164,0.674032,46382.0,46381.0,0.00019957]
[1641365067370,0.724032,46382.0,46381.0,0.00019957]
[1641365067968,0.739032,46382.0,46381.0,0.00019957]
[1641365069069,0.724032,46382.0,46381.0,0.00019957]
[1641365069870,0.738032,46382.0,46381.0,0.00019957]
[1641365070473,2.87642675,46382.0,46381.0,0.00019957]
[1641365070671,0.738032,46382.0,46381.0,0.00019957]
[1641365071313,0.724032,46382.0,46381.0,0.00019957]
[1641365071914,0.776032,46382.0,46381.0,0.00019957]
[1641365072821,0.876032,46382.0,46381.0,0.00019957]
[1641365073017,0.776032,46382.0,46381.0,0.00019957]
[1641365073216,0.724032,46382.0,46381.0,0.00019957]
[1641365074015,0.780032,46382.0,46381.0,0.00019957]
[1641365074419,0.833948,46382.0,46381.0,0.00019957]
[1641365074687,0.780032,46382.0,46381.0,0.00019957]
[1641365075389,0.724032,46382.0,46381.0,0.00019957]
[1641365075988,0.782032,46382.0,46381.0,0.00019957]
[1641365077288,0.724032,46382.0,46381.0,0.00019957]
[1641365077993,0.783032,46382.0,46381.0,0.00019957]
[1641365079222,0.724032,46382.0,46381.0,0.00019957]
[1641365079920,0.783032,46382.0,46381.0,0.00019957]
[1641365081222,0.724032,46382.0,46381.0,0.00019957]
[1641365082022,0.780032,46382.0,46381.0,0.00019957]
[1641365083280,0.724032,46382.0,46381.0,0.00019957]
[1641365084175,0.779032,46382.0,46381.0,0.00019957]
[1641365085478,0.724032,46382.0,46381.0,0.00019957]
[1641365085944,0.783032,46382.0,46381.0,0.00019957]
[1641365087241,0.724032,46382.0,46381.0,0.00019957]
[1641365088042,0.741032,46382.0,46381.0,0.00019957]
[1641365089342,0.724032,46382.0,46381.0,0.00019957]
[1641365089969,0.784032,46382.0,46381.0,0.00019957]
[1641365091177,0.724032,46382.0,46381.0,0.00019957]
[1641365091971,0.780032,46382.0,46381.0,0.00019957]
[1641365093423,0.724032,46382.0,46381.0,0.00019957]
[1641365094022,0.783032,46382.0,46381.0,0.00019957]
[1641365095026,0.98508127,46382.0,46381.0,0.00019957]
[1641365095625,0.783032,46382.0,46381.0,0.00019957]
[1641365096025,0.774032,46382.0,46381.0,0.00019957]
[1641365096728,0.97584747,46382.0,46381.0,0.00019957]
[1641365096926,0.774032,46382.0,46381.0,0.00019957]
[1641365097367,0.724032,46382.0,46381.0,0.00019957]
[1641365098167,0.784032,46382.0,46381.0,0.00019957]
[1641365099468,0.724032,46382.0,46381.0,0.00019957]
[1641365100069,0.777032,46382.0,46381.0,0.00019957]
[1641365100268,0.732126,46382.0,46381.0,0.00019957]
[1641365100918,0.682126,46382.0,46381.0,0.00019957]
[1641365101320,0.629126,46382.0,46381.0,0.00019957]
[1641365102120,0.680126,46382.0,46381.0,0.00019957]
[1641365103323,0.629126,46382.0,46381.0,0.00019957]
[1641365104227,0.678126,46382.0,46381.0,0.00019957]
[1641365105070,0.728126,46382.0,46381.0,0.00019957]
[1641365105375,0.87867195,46382.0,46381.0,0.00019957]
[1641365105672,1.24253812,46382.0,46381.0,0.00019957]
[1641365106071,0.88967195,46382.0,46381.0,0.00019957]
[1641365107272,0.87867195,46382.0,46381.0,0.00019957]
[1641365107873,0.77867195,46382.0,46381.0,0.00019957]
[1641365108175,0.79167195,46382.0,46381.0,0.00019957]
[1641365109217,0.84167195,46382.0,46381.0,0.00019957]
[1641365109424,0.87867195,46382.0,46381.0,0.00019957]
[1641365109718,0.88544967,46382.0,46381.0,0.00019957]
[1641365110137,0.89844967,46382.0,46381.0,0.00019957]
[1641365111317,0.88544967,46382.0,46381.0,0.00019957]
[1641365112179,0.93544967,46382.0,46381.0,0.00019957]
[1641365113376,0.88544967,46382.0,46381.0,0.00019957]
[1641365114177,0.93344967,46382.0,46381.0,0.00019957]
[1641365115376,0.88544967,46382.0,46381.0,0.00019957]
[1641365116227,0.89744967,46382.0,46381.0,0.00019957]
[1641365117024,0.84914967,46382.0,46381.0,0.00019957]
[1641365117428,0.83714967,46382.0,46381.0,0.00019957]
[1641365118226,0.88814967,46382.0,46381.0,0.00019957]
[1641365119433,0.83714967,46382.0,46381.0,0.00019957]
[1641365120075,0.88814967,46382.0,46381.0,0.00019957]
[1641365121473,0.83714967,46382.0,46381.0,0.00019957]
[1641365122274,0.88814967,46382.0,46381.0,0.00019957]
[1641365123077,0.83814967,46382.0,46381.0,0.00019957]
[1641365123725,0.73814967,46382.0,46381.0,0.00019957]
[1641365123920,0.63714967,46382.0,46381.0,0.00019957]
[1641365124119,0.69514967,46382.0,46381.0,0.00019957]
[1641365124822,0.69390372,46382.0,46381.0,0.00019957]
[1641365125426,0.63590372,46382.0,46381.0,0.00019957]
[1641365125821,0.33068372,46382.0,46381.0,0.00019957]
[1641365126221,0.36168372,46382.0,46381.0,0.00019957]
[1641365126422,0.31168372,46382.0,46381.0,0.00019957]
[1641365127476,0.63590372,46382.0,46381.0,0.00019957]
[1641365128272,0.70590372,46382.0,46381.0,0.00019957]
[1641365129374,0.63590372,46382.0,46381.0,0.00019957]
[1641365130274,0.70990372,46382.0,46381.0,0.00019957]
[1641365131345,0.63590372,46382.0,46381.0,0.00019957]
[1641365131749,0.63590372,46382.0,46381.0,1.13019957]
[1641365131945,0.22677772,46382.0,46381.0,1.63371957]
[1641365132146,0.25177772,46382.0,46381.0,1.64071957]
[1641365132345,0.00057651,46384.0,46382.0,1.37]
[1641365132544,0.00057651,46384.0,46383.0,1.77587436]
[1641365132743,0.00057651,46384.0,46383.0,1.83143436]
[1641365133145,0.00057651,46384.0,46383.0,1.88533036]
[1641365133348,0.01183457,46388.0,46383.0,1.88533036]
[1641365134144,0.22,46384.0,46383.0,1.89533036]
[1641365134544,0.22,46384.0,46383.0,1.67214]
[1641365134784,0.22,46384.0,46383.0,1.61658]
[1641365135486,0.22,46384.0,46383.0,1.60658]
[1641365136285,0.22,46384.0,46383.0,1.62058]
[1641365137586,0.22,46384.0,46383.0,1.60658]
[1641365137786,0.22,46384.0,46383.0,0.23658]
[1641365138185,0.22,46384.0,46383.0,0.25458]
[1641365138826,0.22,46384.0,46383.0,0.97458]
[1641365139625,0.22,46384.0,46383.0,0.95658]
[1641365140025,0.22,46384.0,46383.0,0.95677788]
[1641365140226,0.22,46384.0,46383.0,0.97477788]
[1641365141426,0.22,46384.0,46383.0,0.23677788]
[1641365141626,0.22,46384.0,46383.0,0.80677788]
[1641365142273,0.22,46384.0,46383.0,0.82477788]
[1641365142478,0.22,46384.0,46383.0,0.25477788]
[1641365142876,0.47329661,46384.0,46383.0,0.15258188]
[1641365143076,0.47329661,46384.0,46383.0,0.01819788]
[1641365143474,0.47329661,46384.0,46383.0,0.00019788]
[1641365144376,0.47629661,46384.0,46383.0,0.03319788]
[1641365145178,0.83151661,46384.0,46383.0,0.03319788]
[1641365145578,0.83151661,46384.0,46383.0,0.00019788]
[1641365145579,0.82851661,46384.0,46383.0,0.00019788]
[1641365146235,0.84351661,46384.0,46383.0,0.00319788]
[1641365147032,0.48829661,46384.0,46383.0,0.00319788]
[1641365147633,0.82851661,46384.0,46383.0,0.00019788]
[1641365148235,0.83451661,46384.0,46383.0,0.01019788]
[1641365149535,0.82851661,46384.0,46383.0,0.00019788]
[1641365150382,0.77860586,46384.0,46383.0,0.29619788]
[1641365150576,0.77860586,46384.0,46383.0,0.00619788]
[1641365150876,0.77860586,46384.0,46383.0,0.06011062]
[1641365151677,0.77460586,46384.0,46383.0,0.05411062]
[1641365152279,0.80260586,46384.0,46383.0,0.05411062]
[1641365152881,0.44738586,46384.0,46383.0,0.05411062]
[1641365153526,0.41938586,46384.0,46383.0,0.05411062]
[1641365154326,0.49538586,46384.0,46383.0,0.05511062]
[1641365155528,0.41938586,46384.0,46383.0,0.05411062]
[1641365156327,0.49138586,46384.0,46383.0,0.05611062]
[1641365157779,0.41938586,46384.0,46383.0,0.05411062]
[1641365158378,0.45138586,46384.0,46383.0,0.05411062]
[1641365159580,0.41938586,46384.0,46383.0,0.05411062]
[1641365160380,0.44138586,46384.0,46383.0,0.05411062]
[1641365161632,0.41938586,46384.0,46383.0,0.05411062]
[1641365162434,0.47738586,46384.0,46383.0,0.05411062]
[1641365163636,0.41938586,46384.0,46383.0,0.05411062]
[1641365164440,0.44338586,46384.0,46383.0,0.05411062]
[1641365165680,0.41938586,46384.0,46383.0,0.05411062]
[1641365166480,0.47638586,46384.0,46383.0,0.05411062]
[1641365167682,0.41938586,46384.0,46383.0,0.05411062]
[1641365168525,0.48038586,46384.0,46383.0,0.05411062]
[1641365169324,0.22708925,46384.0,46383.0,0.06627062]
[1641365169528,0.22708925,46384.0,46383.0,0.16627062]
[1641365169731,0.16608925,46384.0,46383.0,0.52149062]
[1641365170427,0.16608925,46384.0,46383.0,1.16049062]
[1641365171829,0.16608925,46384.0,46383.0,0.53049062]
[1641365172029,0.16608925,46384.0,46383.0,0.73480892]
[1641365172281,0.16608925,46384.0,46383.0,1.26480892]
[1641365172477,0.16608925,46384.0,46383.0,1.27480892]
[1641365172876,0.16608925,46384.0,46383.0,0.74480892]
[1641365173278,0.16608925,46384.0,46383.0,1.07480892]
[1641365173681,0.16608925,46384.0,46383.0,1.05580892]
[1641365174479,0.16608925,46384.0,46383.0,1.06580892]
[1641365174883,0.16608925,46384.0,46383.0,0.73580892]
[1641365175680,0.16608925,46384.0,46383.0,0.72580892]
[1641365175936,0.16608925,46384.0,46383.0,0.52149062]
[1641365176437,0.16608925,46384.0,46383.0,0.53149062]
[1641365177544,0.16608925,46384.0,46383.0,0.58509062]
[1641365177741,0.16608925,46384.0,46383.0,0.57509062]
[1641365178242,0.16608925,46384.0,46383.0,1.03509062]
[1641365178541,0.16608925,46384.0,46383.0,0.58509062]
[1641365179042,0.16608925,46384.0,46383.0,0.53509062]
[1641365179879,0.16608925,46384.0,46383.0,0.57509062]
[1641365180479,0.16608925,46384.0,46383.0,0.58509062]
[1641365181281,0.16608925,46384.0,46383.0,1.06509062]
[1641365181682,0.16608925,46384.0,46383.0,1.05509062]
[1641365182081,0.16608925,46384.0,46383.0,0.57509062]
[1641365182281,0.16608925,46384.0,46383.0,0.77227304]